fUST/lending_fUST_20240928
["ID","MTS","AMOUNT","RATE_DAILY","PERIOD"]
[339373821,1727508432749,-4240.98539317,0.00033872,2]
[339373822,1727508451115,-1288.85775494,0.00033872,2]
[339373823,1727508451137,-562.36305105,0.000339,2]
[339373836,1727508552131,-499.99999901,0.000268,2]
[339373837,1727508552157,-476.1240959,0.000328,120]
[339373838,1727508552182,-3000.0,0.00034,7]
[339373839,1727508552207,-2050.75268435,0.00034,3]
[339373918,1727508638103,-284.82829781,0.00034,3]
[339373919,1727508638578,-664.41901784,0.00034,3]
[339373920,1727508638588,-129.67537273,0.00034,120]
[339374039,1727508702931,-870.32462727,0.00034,120]
[339374040,1727508702944,-180.059,0.00034,37]
[339374041,1727508702956,-151.0,0.00034533,7]
[339374042,1727508702966,-412.2788661,0.00034548,45]
[339374043,1727508702977,-412.2788661,0.00034549,45]
[339374044,1727508702988,-461.3901861,0.0003455,45]
[339374045,1727508702998,-824.5577322,0.00034551,45]
[339374046,1727508703008,-412.2788661,0.00034552,60]
[339374047,1727508703017,-412.2788661,0.00034553,35]
[339374048,1727508703027,-2500.0,0.00034554,120]
[339374049,1727508703037,-1999.999999,0.00034554,120]
[339374050,1727508703046,-5529.84314811,0.00034778,2]
[339374051,1727508703056,-827.22674087,0.00034832,2]
[339374052,1727508703065,-500.0,0.00034901,2]
[339374053,1727508703074,-500.0,0.0003493,7]
[339374054,1727508703083,-241.31552792,0.0003493,7]
[339374055,1727508703093,-410.51111276,0.00034931,2]
[339374056,1727508703103,-12082.91882229,0.00034931,2]
[339374057,1727508703113,-359.676605,0.00034932,2]
[339374058,1727508703122,-500.0,0.00034973,5]
[339374059,1727508703134,-500.0,0.00034998,14]
[339374060,1727508703144,-500.0,0.00034998,14]
[339374061,1727508703154,-500.0,0.00034998,14]
[339374062,1727508703165,-500.0,0.00034998,14]
[339374063,1727508703175,-500.0,0.00034998,14]
[339374064,1727508703186,-500.0,0.00034998,14]
[339374065,1727508703197,-500.0,0.00034998,14]
[339374066,1727508703206,-500.0,0.00034998,14]
[339374067,1727508703216,-374.41432215,0.00034998,14]
[339374068,1727508703226,-505.3323356,0.00035,120]
[339374069,1727508703235,-5529.84314811,0.00035217,2]
[339374070,1727508703246,-155.230636,0.000355,8]
[339374071,1727508703256,-522.22318148,0.00035521,5]
[339374072,1727508703266,-5529.84314813,0.00035524,2]
[339374073,1727508703278,-400.0,0.00035616,2]
[339374074,1727508703288,-208.32570479,0.00035797,2]
[339374075,1727508703298,-1777.36,0.00035886,3]
[339374076,1727508703308,-196.94,0.00035887,3]
[339374077,1727508703318,-7800.0,0.00035895,10]
[339374078,1727508703328,-906.80258832,0.00035895,2]
[339374079,1727508703337,-500.0,0.00035896,15]
[339374080,1727508703347,-279.93094588,0.00035896,15]
[339374081,1727508703358,-346.12950715,0.00035896,15]
[339374082,1727508703368,-500.0,0.00035896,15]
[339374083,1727508703378,-500.0,0.00035896,15]
[339374084,1727508703388,-340.09729207,0.00035896,15]
[339374085,1727508703398,-6064.5759311,0.00035896,2]
[339374086,1727508703408,-258485.432756,0.00035897,5]
[339374087,1727508703418,-151.0,0.00036006,15]
[339374088,1727508703429,-1154916.06742,0.00036014,7]
[339374089,1727508703441,-1000.0,0.00036015,2]
[339374090,1727508703451,-1000.0,0.0003613,2]
[339374091,1727508703461,-470.09873258,0.00036187,2]
[339374092,1727508703471,-188.0,0.0003626,34]
[339374093,1727508703480,-1000.0,0.00036279,2]
[339374094,1727508703489,-502.0,0.00036562,2]
[339374095,1727508703499,-153.0,0.00036822,2]
[339374096,1727508703509,-153.0,0.00036822,2]
[339374097,1727508703521,-153.0,0.00036822,2]
[339374098,1727508703531,-153.0,0.00036822,2]
[339374099,1727508703545,-172323.621838,0.00036858,5]
[339374100,1727508703555,-88888.0,0.00036868,60]
[339374101,1727508703566,-336.01317013,0.00036868,2]
[339374102,1727508703576,-150.0,0.00036873,5]
[339374103,1727508703586,-161.0,0.0003688,120]
[339374104,1727508703599,-208.32570479,0.000369,2]
[339374105,1727508703610,-284.692113,0.00036938,14]
[339374106,1727508703620,-151.049112,0.00036938,14]
[339374107,1727508703629,-151.0,0.00036938,14]
[339374108,1727508703639,-262.410832,0.00036948,14]
[339374109,1727508703648,-151.0,0.00036948,14]
[339374110,1727508703657,-34488.45,0.00036968,120]
[339374111,1727508703667,-54260.34297921,0.00037,15]
[339374112,1727508703677,-1475.0,0.00037,14]
[339374113,1727508703687,-499.999999,0.00037,2]
[339374114,1727508703696,-164.0,0.00037,2]
[339374115,1727508703706,-500.0,0.00037068,10]
[339374116,1727508703716,-20028.25724646,0.0003709,4]
[339374117,1727508703725,-2399.88,0.000371,14]
[339374118,1727508703735,-1192.55,0.000371,14]
[339374119,1727508703744,-150.608,0.00037105,2]
[339374120,1727508703754,-527.409,0.00037105,2]
[339374121,1727508703764,-1220.735,0.00037105,2]
[339374122,1727508703773,-393.88,0.00037257,3]
[339374123,1727508703783,-261.46,0.000374,14]
[339374124,1727508703792,-150.303,0.0003744,2]
[339374125,1727508703801,-150.0,0.0003744,2]
[339374126,1727508703811,-150.0,0.0003744,2]
[339374127,1727508703820,-21137.38470991,0.0003747,7]
[339374128,1727508703830,-20000.0,0.0003747,14]
[339374129,1727508703840,-150.061,0.00037476,2]
[339374130,1727508703850,-151.0,0.0003748,15]
[339374131,1727508703860,-500.0,0.00037757,14]
[339374132,1727508703869,-500.0,0.00037757,14]
[339374133,1727508703878,-500.0,0.00037757,14]
[339374134,1727508703888,-500.0,0.00037757,14]
[339374135,1727508703897,-500.0,0.00037757,14]
[339374136,1727508703906,-486.71759129,0.00037757,14]
[339374137,1727508703916,-153.0,0.00037781,2]
[339374138,1727508703926,-155.7534617,0.00037781,2]
[339374139,1727508703935,-153.0,0.00037781,2]
[339374140,1727508703946,-153.0,0.00037781,2]
[339374141,1727508703956,-18218.63,0.000378,14]
[339374142,1727508703966,-5512.415113,0.000378,30]
[339374143,1727508703976,-12821.48216568,0.00038,2]
[339374144,1727508703987,-1018.0,0.00038,7]
[339374145,1727508703998,-249.0,0.00038,7]
[339374146,1727508704007,-200000.0,0.00038,30]
[339374147,1727508704017,-153.0,0.00038055,2]
[339374148,1727508704028,-153.0,0.00038055,2]
[339374149,1727508704037,-153.0,0.00038055,2]
[339374150,1727508704047,-153.0,0.00038055,2]
[339374151,1727508704056,-249.17946104,0.00038111,2]
[339374152,1727508704065,-76015.13290099,0.00038336,3]
[339374153,1727508704074,-500.0,0.00038356,120]
[339374154,1727508704084,-500.0,0.00038356,120]
[339374155,1727508704095,-506.47046647,0.00038356,120]
[339374156,1727508704104,-503.54280841,0.00038356,30]
[339374157,1727508704114,-500.0,0.00038356,120]
[339374158,1727508704123,-513.94728084,0.00038356,120]
[339374159,1727508704133,-500.0,0.00038356,120]
[339374160,1727508704142,-504.84398877,0.00038356,120]
[339374161,1727508704152,-500.0,0.00038356,120]
[339374162,1727508704162,-502.7031393,0.00038356,120]
[339374163,1727508704171,-504.84491252,0.00038356,120]
[339374164,1727508704181,-501.86059566,0.00038356,120]
[339374165,1727508704191,-616.53373599,0.00038356,120]
[339374166,1727508704200,-201.19977413,0.00038356,7]
[339374167,1727508704210,-502.20119217,0.00038356,120]
[339374168,1727508704219,-501.36836563,0.00038356,120]
[339374169,1727508704228,-501.16315704,0.00038356,120]
[339374170,1727508704238,-501.65524438,0.00038356,120]
[339374171,1727508704247,-559.90369371,0.00038356,120]
[339374172,1727508704257,-500.0,0.00038356,30]
[339374173,1727508704266,-500.0,0.00038356,120]
[339374174,1727508704277,-505.09736279,0.00038356,120]
[339374175,1727508704288,-523.87952341,0.00038356,120]
[339374176,1727508704297,-512.05085181,0.00038356,120]
[339374177,1727508704308,-527.66321695,0.00038356,120]
[339374178,1727508704317,-521.85936665,0.00038356,120]
[339374179,1727508704327,-506.95354814,0.00038356,120]
[339374180,1727508704337,-509.43742847,0.00038356,120]
[339374181,1727508704350,-500.0,0.00038356,120]
[339374182,1727508704360,-500.0,0.00038356,120]
[339374183,1727508704369,-509.80735692,0.00038356,120]
[339374184,1727508704379,-509.25617168,0.00038356,120]
[339374185,1727508704388,-536.96017275,0.00038356,120]
[339374186,1727508704398,-506.20599511,0.00038356,120]
[339374187,1727508704409,-509.33382692,0.00038356,120]
[339374188,1727508704419,-504.15597168,0.00038356,120]
[339374189,1727508704430,-513.12547138,0.00038356,120]
[339374190,1727508704439,-508.93165015,0.00038356,120]
[339374191,1727508704450,-513.59122205,0.00038356,120]
[339374192,1727508704460,-542.38947231,0.00038356,120]
[339374193,1727508704470,-502.75412633,0.00038356,120]
[339374194,1727508704481,-510.31547717,0.00038356,120]
[339374195,1727508704491,-522.31930311,0.00038356,120]
[339374196,1727508704501,-527.63247407,0.00038356,120]
[339374197,1727508704680,-510.003436,0.00038356,120]
[339374198,1727508704690,-500.0,0.00038356,120]
[339374199,1727508704700,-500.0,0.00038356,120]
[339374200,1727508704710,-526.41063273,0.00038356,120]
[339374201,1727508704720,-504.07229941,0.00038356,120]
[339374202,1727508704729,-500.0,0.00038356,120]
[339374203,1727508704738,-500.0,0.00038356,120]
[339374204,1727508704748,-502.39917813,0.00038356,120]
[339374205,1727508704758,-534.26779654,0.00038356,120]
[339374206,1727508704768,-515.4589271,0.00038356,120]
[339374207,1727508704778,-500.0,0.00038356,120]
[339374208,1727508704788,-504.70428398,0.00038356,120]
[339374209,1727508704798,-506.679012,0.00038356,120]
[339374210,1727508704807,-508.2541684,0.00038356,120]
[339374211,1727508704817,-500.0,0.00038356,120]
[339374212,1727508704826,-508.56641038,0.00038356,120]
[339374213,1727508704836,-504.07468182,0.00038356,120]
[339374214,1727508704847,-500.0,0.00038356,120]
[339374215,1727508704856,-518.26791314,0.00038356,120]
[339374216,1727508704865,-531.08514935,0.00038356,120]
[339374217,1727508704874,-745.54,0.00038356,120]
[339374218,1727508704883,-512.84247905,0.00038356,120]
[339374219,1727508704892,-520.20377612,0.00038356,120]
[339374220,1727508704901,-502.47553859,0.00038356,120]
[339374221,1727508704910,-503.77968206,0.00038356,120]
[339374222,1727508704920,-512.1556948,0.00038356,120]
[339374223,1727508704930,-502.59828815,0.00038356,120]
[339374224,1727508704940,-505.99396006,0.00038356,120]
[339374225,1727508704950,-506.78208654,0.00038356,120]
[339374226,1727508704960,-506.54425467,0.00038356,120]
[339374227,1727508704969,-510.41708961,0.00038356,120]
[339374228,1727508704979,-520.21320251,0.00038356,120]
[339374229,1727508704988,-636.33017405,0.00038356,120]
[339374230,1727508704997,-500.0,0.00038356,120]
[339374231,1727508705006,-513.15836287,0.00038356,120]
[339374232,1727508705016,-505.96297954,0.00038356,120]
[339374233,1727508705026,-516.78171581,0.00038356,120]
[339374234,1727508705035,-502.56098031,0.00038356,120]
[339374235,1727508705044,-521.85247061,0.00038356,120]
[339374236,1727508705054,-515.5905105,0.00038356,120]
[339374237,1727508705063,-516.97416899,0.00038356,120]
[339374238,1727508705072,-514.64078818,0.00038356,120]
[339374239,1727508705081,-512.76678781,0.00038356,120]
[339374240,1727508705091,-534.41489572,0.00038356,120]
[339374241,1727508705102,-504.43948856,0.00038356,120]
[339374242,1727508705111,-517.78826375,0.00038356,120]
[339374243,1727508705120,-508.70085525,0.00038356,120]
[339374244,1727508705130,-535.88729349,0.00038356,120]
[339374245,1727508705139,-501.56753952,0.00038356,120]
[339374246,1727508705148,-513.86938763,0.00038356,120]
[339374247,1727508705157,-513.34489519,0.00038356,120]
[339374248,1727508705166,-500.0,0.00038356,120]
[339374249,1727508705176,-531.17493681,0.00038356,120]
[339374250,1727508705186,-508.37655825,0.00038356,120]
[339374251,1727508705196,-508.60598261,0.00038356,120]
[339374252,1727508705205,-514.85338671,0.00038356,120]
[339374253,1727508705215,-430.22536523,0.00038356,120]
[339374254,1727508705224,-514.81181911,0.00038356,120]
[339374255,1727508705233,-511.55678267,0.00038356,120]
[339374256,1727508705243,-508.50331481,0.00038356,120]
[339374257,1727508705253,-529.31314661,0.00038356,120]
[339374258,1727508705262,-506.58688397,0.00038356,120]
[339374259,1727508705271,-512.495315,0.00038356,120]
[339374260,1727508705281,-502.73579712,0.00038356,120]
[339374261,1727508705290,-509.25358846,0.00038356,120]
[339374262,1727508705299,-531.90663955,0.00038356,120]
[339374263,1727508705308,-504.22961931,0.00038356,120]
[339374264,1727508705318,-523.07223608,0.00038356,120]
[339374265,1727508705329,-511.01629745,0.00038356,120]
[339374266,1727508705338,-502.34397194,0.00038356,120]
[339374267,1727508705350,-522.83033266,0.00038356,120]
[339374268,1727508705358,-502.20911868,0.00038356,120]
[339374269,1727508705367,-505.22802481,0.00038356,120]
[339374270,1727508705376,-510.96784899,0.00038356,120]
[339374271,1727508705385,-503.03608985,0.00038356,120]
[339374272,1727508705397,-546.40221105,0.00038356,120]
[339374273,1727508705406,-522.75209396,0.00038356,120]
[339374274,1727508705418,-504.14697121,0.00038356,120]
[339374275,1727508705428,-510.5697007,0.00038356,120]
[339374276,1727508705437,-500.0,0.00038356,120]
[339374277,1727508705447,-500.0,0.00038356,120]
[339374278,1727508705456,-508.89957754,0.00038356,120]
[339374279,1727508705465,-513.60140856,0.00038356,120]
[339374280,1727508705475,-500.0,0.00038356,120]
[339374281,1727508705485,-518.35605099,0.00038356,5]
[339374282,1727508705497,-500.0,0.00038356,120]
[339374283,1727508705507,-500.0,0.00038356,120]
[339374284,1727508705517,-500.0,0.00038356,120]
[339374285,1727508705528,-500.0,0.00038356,120]
[339374286,1727508705542,-500.0,0.00038356,120]
[339374287,1727508705552,-500.0,0.00038356,120]
[339374288,1727508705561,-500.0,0.00038356,120]
[339374289,1727508705572,-500.0,0.00038356,120]
[339374290,1727508705582,-500.0,0.00038356,120]
[339374291,1727508705594,-500.0,0.00038356,120]
[339374292,1727508705605,-500.0,0.00038356,120]
[339374293,1727508705616,-583.41786786,0.00038356,120]
[339374294,1727508705626,-500.0,0.00038356,2]
[339374295,1727508705636,-503.62950205,0.00038356,120]
[339374296,1727508705646,-594.10933743,0.00038356,120]
[339374297,1727508705657,-641.66949227,0.00038356,120]
[339374298,1727508705667,-518.67113778,0.00038356,120]
[339374299,1727508705678,-500.0,0.00038356,120]
[339374300,1727508705689,-508.91256509,0.00038356,120]
[339374301,1727508705698,-507.79433672,0.00038356,120]
[339374302,1727508705709,-500.0,0.00038356,120]
[339374303,1727508705719,-508.54677667,0.00038356,120]
[339374304,1727508705728,-533.92990119,0.00038356,120]
[339374305,1727508705737,-555.64544874,0.00038356,120]
[339374306,1727508705746,-204.81123053,0.00038356,120]
[339374307,1727508705756,-506.48853054,0.00038356,120]
[339374308,1727508705765,-561.02187032,0.00038356,120]
[339374309,1727508705776,-642.92055447,0.00038356,120]
[339374310,1727508705787,-504.54372293,0.00038356,120]
[339374311,1727508705797,-507.09152483,0.00038356,120]
[339374312,1727508705808,-500.0,0.00038356,5]
[339374313,1727508705819,-500.0,0.00038356,5]
[339374314,1727508705830,-500.0,0.00038356,5]
[339374315,1727508705839,-247.15775695,0.00038356,5]
[339374316,1727508705851,-527.60777652,0.00038356,120]
[339374317,1727508705860,-503.93226696,0.00038356,120]
[339374318,1727508705871,-507.4115113,0.00038356,120]
[339374319,1727508705880,-509.8592587,0.00038356,120]
[339374320,1727508705890,-503.54426481,0.00038356,120]
[339374321,1727508705900,-502.11696048,0.00038356,10]
[339374322,1727508705911,-506.87894662,0.00038356,120]
[339374323,1727508705921,-505.0,0.00038356,120]
[339374324,1727508705933,-517.65896626,0.00038356,120]
[339374325,1727508705942,-502.45728435,0.00038356,120]
[339374326,1727508705951,-501.99263528,0.00038356,120]
[339374327,1727508705961,-500.0,0.00038356,120]
[339374328,1727508705972,-504.12862469,0.00038356,120]
[339374329,1727508705982,-502.23553638,0.00038356,120]
[339374330,1727508705993,-544.73244505,0.00038356,120]
[339374331,1727508706003,-507.8419587,0.00038356,120]
[339374332,1727508706011,-536.77040977,0.00038356,120]
[339374333,1727508706021,-538.45,0.00038356,120]
[339374334,1727508706030,-507.5341654,0.00038356,120]
[339374335,1727508706040,-506.26325665,0.00038356,120]
[339374336,1727508706049,-511.38296836,0.00038356,2]
[339374337,1727508706059,-622.58769644,0.00038356,120]
[339374338,1727508706070,-500.0,0.00038356,120]
[339374339,1727508706081,-567.74961559,0.00038356,120]
[339374340,1727508706090,-507.03834921,0.00038356,120]
[339374341,1727508706102,-516.89605707,0.00038356,120]
[339374342,1727508706114,-504.21854217,0.00038356,120]
[339374343,1727508706124,-504.42577662,0.00038356,120]
[339374344,1727508706133,-537.67139959,0.00038356,120]
[339374345,1727508706142,-541.50658347,0.00038356,120]
[339374346,1727508706151,-502.68901117,0.00038356,120]
[339374347,1727508706162,-505.15875036,0.00038356,120]
[339374348,1727508706171,-530.75389868,0.00038356,120]
[339374349,1727508706180,-505.1384008,0.00038356,120]
[339374350,1727508706189,-511.38263542,0.00038356,120]
[339374351,1727508706198,-511.47688219,0.00038356,120]
[339374352,1727508706208,-502.99804595,0.00038356,120]
[339374353,1727508706217,-502.12545403,0.00038356,120]
[339374354,1727508706226,-515.72001955,0.00038356,120]
[339374355,1727508706235,-150.19088979,0.00038356,120]
[339374356,1727508706245,-592.32862925,0.00038356,120]
[339374357,1727508706255,-514.45847868,0.00038356,120]
[339374358,1727508706265,-507.19494366,0.00038356,120]
[339374359,1727508706274,-504.98926911,0.00038356,120]
[339374360,1727508706284,-511.24985437,0.00038356,120]
[339374361,1727508706294,-510.95472826,0.00038356,120]
[339374362,1727508706304,-500.0,0.00038356,120]
[339374363,1727508706314,-628.91951407,0.00038356,120]
[339374364,1727508706325,-512.29118397,0.00038356,120]
[339374365,1727508706334,-503.8040394,0.00038356,120]
[339374366,1727508706344,-523.87912768,0.00038356,120]
[339374367,1727508706353,-507.41601474,0.00038356,120]
[339374368,1727508706362,-515.22467771,0.00038356,120]
[339374369,1727508706372,-508.95786563,0.00038356,120]
[339374370,1727508706382,-551.34564941,0.00038356,120]
[339374371,1727508706391,-533.11005193,0.00038356,120]
[339374372,1727508706402,-505.75596535,0.00038356,120]
[339374373,1727508706411,-517.55450577,0.00038356,120]
[339374374,1727508706421,-517.60878991,0.00038356,120]
[339374375,1727508706431,-507.10586408,0.00038356,120]
[339374376,1727508706440,-509.15344339,0.00038356,120]
[339374377,1727508706449,-503.24849506,0.00038356,120]
[339374378,1727508706458,-505.64609023,0.00038356,120]
[339374379,1727508706467,-507.73791103,0.00038356,120]
[339374380,1727508706476,-500.0,0.00038356,7]
[339374381,1727508706485,-508.56538954,0.00038356,120]
[339374382,1727508706494,-510.61066179,0.00038356,120]
[339374383,1727508706503,-507.02222494,0.00038356,120]
[339374384,1727508706512,-503.71721134,0.00038356,120]
[339374385,1727508706522,-504.37204875,0.00038356,120]
[339374386,1727508706532,-511.83520726,0.00038356,120]
[339374387,1727508706545,-507.08587611,0.00038356,120]
[339374388,1727508706554,-507.36074905,0.00038356,120]
[339374389,1727508706564,-502.68653853,0.00038356,120]
[339374390,1727508706573,-511.63909285,0.00038356,120]
[339374391,1727508706583,-504.35444039,0.00038356,120]
[339374392,1727508706592,-507.17265888,0.00038356,120]
[339374393,1727508706602,-503.87444974,0.00038356,120]
[339374394,1727508706612,-508.50251935,0.00038356,120]
[339374395,1727508706623,-505.26337171,0.00038356,120]
[339374396,1727508706633,-505.86826996,0.00038356,120]
[339374397,1727508706643,-508.93747091,0.00038356,120]
[339374398,1727508706652,-503.61039171,0.00038356,120]
[339374399,1727508706661,-508.80322244,0.00038356,120]
[339374400,1727508706671,-503.79186124,0.00038356,120]
[339374401,1727508706681,-627.04498501,0.00038356,120]
[339374402,1727508706690,-500.0,0.00038356,120]
[339374403,1727508706699,-522.32614882,0.00038356,120]
[339374404,1727508706709,-503.78760463,0.00038356,120]
[339374405,1727508706718,-507.24050624,0.00038356,120]
[339374406,1727508706727,-514.48669722,0.00038356,120]
[339374407,1727508706737,-503.97981795,0.00038356,120]
[339374408,1727508706747,-500.0,0.00038356,120]
[339374409,1727508706756,-501.59244397,0.00038356,120]
[339374410,1727508706766,-512.96370633,0.00038356,120]
[339374411,1727508706775,-504.55214343,0.00038356,120]
[339374412,1727508706784,-502.77368628,0.00038356,120]
[339374413,1727508706794,-505.53191532,0.00038356,120]
[339374414,1727508706803,-512.59287947,0.00038356,120]
[339374415,1727508706813,-501.54696264,0.00038356,120]
[339374416,1727508706822,-504.16598139,0.00038356,120]
[339374417,1727508706831,-505.02359627,0.00038356,120]
[339374418,1727508706841,-506.16177318,0.00038356,120]
[339374419,1727508706851,-514.82152437,0.00038356,120]
[339374420,1727508706860,-507.88450916,0.00038356,120]
[339374421,1727508706870,-510.68938775,0.00038356,120]
[339374422,1727508706879,-500.0,0.00038356,120]
[339374423,1727508706888,-518.61579691,0.00038356,120]
[339374424,1727508706897,-511.48434687,0.00038356,120]
[339374425,1727508706906,-503.51105502,0.00038356,120]
[339374426,1727508706916,-507.97194287,0.00038356,120]
[339374427,1727508706926,-500.72944751,0.00038356,7]
[339374428,1727508706938,-520.81428066,0.00038356,120]
[339374429,1727508706947,-509.11694987,0.00038356,120]
[339374430,1727508706959,-500.0,0.00038356,120]
[339374431,1727508706970,-500.0,0.00038356,2]
[339374432,1727508706981,-500.0,0.00038356,120]
[339374433,1727508706992,-500.0,0.00038356,120]
[339374434,1727508707002,-502.47093394,0.00038356,120]
[339374435,1727508707012,-624.68948014,0.00038356,120]
[339374436,1727508707021,-500.0,0.00038356,30]
[339374437,1727508707031,-505.69681243,0.00038356,120]
[339374438,1727508707040,-503.65894175,0.00038356,120]
[339374439,1727508707049,-500.0,0.00038356,120]
[339374440,1727508707058,-487.49348802,0.00038356,120]
[339374441,1727508707067,-514.96470602,0.00038356,120]
[339374442,1727508707075,-519.2075165,0.00038356,120]
[339374443,1727508707084,-512.99035637,0.00038356,120]
[339374444,1727508707094,-501.35968307,0.00038356,120]
[339374445,1727508707103,-524.58949716,0.00038356,120]
[339374446,1727508707113,-505.86512137,0.00038356,120]
[339374447,1727508707122,-512.03813375,0.00038356,120]
[339374448,1727508707131,-512.13812347,0.00038356,120]
[339374449,1727508707141,-539.46825901,0.00038356,120]
[339374450,1727508707150,-502.66160436,0.00038356,120]
[339374451,1727508707159,-500.0,0.00038356,120]
[339374452,1727508707169,-641.1269463,0.00038356,120]
[339374453,1727508707178,-509.52886857,0.00038356,120]
[339374454,1727508707187,-500.0,0.00038356,7]
[339374455,1727508707196,-537.05849545,0.00038356,120]
[339374456,1727508707206,-507.38826231,0.00038356,120]
[339374457,1727508707215,-527.89293348,0.00038356,120]
[339374458,1727508707224,-500.0,0.00038356,120]
[339374459,1727508707233,-511.71478187,0.00038356,120]
[339374460,1727508707242,-500.0,0.00038356,120]
[339374461,1727508707251,-476.24583551,0.00038356,120]
[339374462,1727508707260,-577.60255071,0.00038356,120]
[339374463,1727508707270,-502.80259466,0.00038356,120]
[339374464,1727508707278,-501.18656584,0.00038356,120]
[339374465,1727508707287,-507.68137005,0.00038356,120]
[339374466,1727508707297,-500.0,0.00038356,120]
[339374467,1727508707306,-509.91826219,0.00038356,120]
[339374468,1727508707316,-504.28172598,0.00038356,120]
[339374469,1727508707326,-505.6211923,0.00038356,120]
[339374470,1727508707335,-500.0,0.00038356,120]
[339374471,1727508707346,-509.97228183,0.00038356,120]
[339374472,1727508707359,-507.20094425,0.00038356,120]
[339374473,1727508707368,-502.19780777,0.00038356,120]
[339374474,1727508707377,-510.80734865,0.00038356,120]
[339374475,1727508707387,-500.0,0.00038356,120]
[339374476,1727508707396,-507.96030374,0.00038356,120]
[339374477,1727508707406,-504.40587087,0.00038356,120]
[339374478,1727508707416,-631.7822493,0.00038356,120]
[339374479,1727508707425,-521.51410994,0.00038356,120]
[339374480,1727508707434,-513.27491074,0.00038356,120]
[339374481,1727508707446,-503.29911579,0.00038356,120]
[339374482,1727508707455,-500.0,0.00038356,120]
[339374483,1727508707465,-515.43668088,0.00038356,120]
[339374484,1727508707474,-501.33069272,0.00038356,120]
[339374485,1727508707484,-508.14168384,0.00038356,120]
[339374486,1727508707494,-544.36677628,0.00038356,120]
[339374487,1727508707503,-515.3030051,0.00038356,120]
[339374488,1727508707513,-511.6191778,0.00038356,120]
[339374489,1727508707525,-501.65519729,0.00038356,120]
[339374490,1727508707534,-569.65048705,0.00038356,120]
[339374491,1727508707546,-999.0,0.00038356,120]
[339374492,1727508707560,-504.36645637,0.00038356,120]
[339374493,1727508707570,-502.33957125,0.00038356,120]
[339374494,1727508707580,-507.77825827,0.00038356,120]
[339374495,1727508707591,-648.83021536,0.00038356,120]
[339374496,1727508707603,-504.64880586,0.00038356,120]
[339374497,1727508707613,-511.87041375,0.00038356,120]
[339374498,1727508707622,-506.46399513,0.00038356,120]
[339374499,1727508707634,-517.1884055,0.00038356,120]
[339374500,1727508707644,-502.74953596,0.00038356,120]
[339374501,1727508707655,-1022.64,0.00038356,120]
[339374502,1727508707665,-556.58316279,0.00038356,120]
[339374503,1727508707674,-504.13964233,0.00038356,120]
[339374504,1727508707683,-501.64482631,0.00038356,120]
[339374505,1727508707692,-173.62669962,0.00038356,120]
[339374506,1727508707702,-509.57980979,0.00038356,60]
[339374507,1727508707711,-646.45,0.00038356,7]
[339374508,1727508707721,-500.0,0.00038356,120]
[339374509,1727508707731,-647.72200651,0.00038356,120]
[339374510,1727508707740,-1092.5,0.00038356,120]
[339374511,1727508707749,-500.0,0.00038356,120]
[339374512,1727508707758,-500.0,0.00038356,120]
[339374513,1727508707768,-514.37978677,0.00038356,120]
[339374514,1727508707778,-503.77145805,0.00038356,120]
[339374515,1727508707787,-508.7525608,0.00038356,120]
[339374516,1727508707796,-576.77806691,0.00038356,120]
[339374517,1727508707807,-563.90117571,0.00038356,120]
[339374518,1727508707817,-7083.29,0.00038356,120]
[339374519,1727508707826,-575.29785034,0.00038356,120]
[339374520,1727508707835,-1583.64,0.00038356,120]
[339374521,1727508707848,-4617.35,0.00038356,120]
[339374522,1727508707858,-500.0,0.00038356,120]
[339374523,1727508707867,-508.49089728,0.00038356,120]
[339374524,1727508707876,-255.14281659,0.00038356,120]
[339374525,1727508707885,-500.0,0.00038356,120]
[339374526,1727508707894,-618.49707181,0.00038356,120]
[339374527,1727508707904,-508.93197103,0.00038356,120]
[339374528,1727508707914,-214.0565054,0.00038356,120]